bitfinex/quotes_BTCUSD_20240617
["timestamp","ask_amount","ask_price","bid_price","bid_amount"]
[1718604386138,1.39060984,66301.0,66300.0,0.28951307]
[1718604388163,1.39060984,66301.0,66300.0,0.22951307]
[1718604389532,1.08895584,66301.0,66300.0,0.22951307]
[1718604390157,1.06918075,66301.0,66300.0,0.22951307]
[1718604390392,1.08895584,66301.0,66300.0,0.22951307]
[1718604390599,1.39060984,66301.0,66300.0,0.22951307]
[1718604391420,1.08895584,66301.0,66300.0,0.22951307]
[1718604391633,1.06918075,66301.0,66300.0,0.22951307]
[1718604392891,1.37083475,66301.0,66300.0,0.22951307]
[1718604393088,1.39060984,66301.0,66300.0,0.22951307]
[1718604394248,1.69226384,66301.0,66300.0,0.22951307]
[1718604394777,2.15600563,66301.0,66300.0,0.22951307]
[1718604394986,2.15923257,66301.0,66300.0,0.22951307]
[1718604395830,2.31132036,66301.0,66300.0,0.22951307]
[1718604396027,2.31432036,66301.0,66300.0,0.22951307]
[1718604396203,2.41432036,66301.0,66300.0,0.22951307]
[1718604397112,2.51283925,66301.0,66300.0,0.22951307]
[1718604397313,2.5128384,66301.0,66300.0,0.22951307]
[1718604397443,2.6558384,66301.0,66300.0,0.22951307]
[1718604397643,2.6658384,66301.0,66300.0,0.22951307]
[1718604398251,2.6558384,66301.0,66300.0,0.22951307]
[1718604398450,2.6598384,66301.0,66300.0,0.22951307]
[1718604398654,2.6698384,66301.0,66300.0,0.22951307]
[1718604400238,2.70308643,66301.0,66300.0,0.22951307]
[1718604400451,3.00474043,66301.0,66300.0,0.22951307]
[1718604400654,2.96939599,66301.0,66300.0,0.22951307]
[1718604401006,2.98339599,66301.0,66300.0,0.22951307]
[1718604401203,3.20987599,66301.0,66300.0,0.22951307]
[1718604401830,3.25987599,66301.0,66300.0,0.22951307]
[1718604402033,3.25987599,66301.0,66292.0,0.009394]
[1718604402034,1.72246009,66293.0,66292.0,0.009394]
[1718604402263,2.70370635,66293.0,66292.0,0.009394]
[1718604402456,2.90331447,66293.0,66292.0,0.009394]
[1718604403154,2.87178064,66293.0,66292.0,0.009394]
[1718604403361,1.37773109,66276.0,66275.0,0.009394]
[1718604403564,2.35897735,66276.0,66275.0,0.009394]
[1718604403762,2.37495361,66276.0,66275.0,0.009394]
[1718604404197,2.50465794,66276.0,66275.0,0.009394]
[1718604404402,2.20288994,66276.0,66275.0,0.009394]
[1718604404596,2.08818561,66276.0,66275.0,0.009394]
[1718604405186,2.07318561,66276.0,66275.0,0.009394]
[1718604405399,1.78441761,66276.0,66275.0,0.009394]
[1718604405587,1.78441761,66276.0,66275.0,0.087694]
[1718604405588,0.91659382,66276.0,66275.0,0.087694]
[1718604405923,0.91659382,66276.0,66275.0,0.11986305]
[1718604406334,1.21836182,66276.0,66275.0,0.087694]
[1718604406540,1.52012982,66276.0,66275.0,0.087694]
[1718604406983,1.21836182,66276.0,66275.0,0.087694]
[1718604407182,1.20436182,66276.0,66275.0,0.087694]
[1718604407395,1.79489782,66276.0,66275.0,0.087694]
[1718604407595,1.80889782,66276.0,66275.0,0.087694]
[1718604407748,1.82189782,66276.0,66275.0,0.087694]
[1718604407963,1.82189782,66276.0,66275.0,0.009394]
[1718604408395,1.95312375,66276.0,66275.0,0.009394]
[1718604408564,1.95412375,66276.0,66275.0,0.009394]
[1718604408969,1.96712375,66276.0,66275.0,0.009394]
[1718604410671,2.11921154,66276.0,66275.0,0.009394]
[1718604411304,2.12921154,66276.0,66275.0,0.009394]
[1718604412425,2.20441154,66276.0,66275.0,0.009394]
[1718604412627,2.56717954,66276.0,66275.0,0.009394]
[1718604413259,2.55317954,66276.0,66275.0,0.009394]
[1718604413804,2.54017954,66276.0,66275.0,0.009394]
[1718604414277,2.55417954,66276.0,66275.0,0.009394]
[1718604414453,2.64465954,66276.0,66275.0,0.009394]
[1718604415047,2.65865954,66276.0,66275.0,0.009394]
[1718604416169,2.78485954,66276.0,66275.0,0.009394]
[1718604416384,2.77485954,66276.0,66275.0,0.009394]
[1718604416583,2.62277175,66276.0,66275.0,0.009394]
[1718604416789,2.63277175,66276.0,66275.0,0.009394]
[1718604417172,1.66635575,66276.0,66275.0,0.009394]
[1718604417809,1.06281975,66276.0,66275.0,0.157594]
[1718604418009,0.91193575,66276.0,66275.0,0.157594]
[1718604418211,0.89216066,66276.0,66275.0,0.157594]
[1718604418413,0.89216066,66276.0,66275.0,0.19675305]
[1718604418666,1.34481266,66276.0,66275.0,0.157594]
[1718604419839,1.04304466,66276.0,66275.0,0.157594]
[1718604420074,0.74007287,66276.0,66275.0,0.157594]
[1718604420475,0.89095687,66276.0,66275.0,0.157594]
[1718604420698,0.87695687,66276.0,66275.0,0.157594]
[1718604420865,0.86295687,66276.0,66275.0,0.157594]
[1718604421065,0.71907287,66276.0,66275.0,0.157594]
[1718604421274,0.72407287,66276.0,66275.0,0.157594]
[1718604421504,0.71907287,66276.0,66275.0,0.157594]
[1718604421920,0.72407287,66276.0,66275.0,0.157594]
[1718604422131,1.47849287,66276.0,66275.0,0.157594]
[1718604422355,0.72407287,66276.0,66275.0,0.157594]
[1718604422577,0.71707287,66276.0,66275.0,0.157594]
[1718604422791,0.61707287,66276.0,66275.0,0.157594]
[1718604423224,0.62407287,66276.0,66275.0,0.157594]
[1718604423862,0.62407287,66276.0,66275.0,0.15781891]
[1718604424084,0.62407287,66276.0,66275.0,0.157594]
[1718604427082,0.94561596,66276.0,66275.0,0.157594]
[1718604427282,1.07672487,66276.0,66275.0,0.157594]
[1718604427493,1.85212375,66276.0,66275.0,0.009394]
[1718604427719,1.55035575,66276.0,66275.0,0.009394]
[1718604427962,1.53058066,66276.0,66275.0,0.009394]
[1718604428208,2.00172375,66276.0,66275.0,0.009394]
[1718604429797,1.53058066,66276.0,66275.0,0.009394]
[1718604430035,1.22181266,66276.0,66275.0,0.009394]
[1718604430229,1.53058066,66276.0,66275.0,0.009394]
[1718604430730,1.52358066,66276.0,66275.0,0.009394]
[1718604430954,0.91504466,66276.0,66275.0,0.072494]
[1718604431184,0.76416066,66276.0,66275.0,0.19772626]
[1718604431413,0.77116066,66276.0,66275.0,0.19772626]
[1718604431656,0.92204466,66276.0,66275.0,0.19772626]
[1718604432122,1.23581266,66276.0,66275.0,0.19772626]
[1718604432353,1.26558775,66276.0,66275.0,0.19772626]
[1718604432581,1.24581266,66276.0,66275.0,0.19772626]
[1718604432980,1.23581266,66276.0,66275.0,0.19772626]
[1718604433205,1.24881266,66276.0,66275.0,0.19772626]
[1718604434345,0.94704466,66276.0,66275.0,0.19772626]
[1718604434623,0.64407287,66276.0,66275.0,0.63845145]
[1718604434841,0.64407287,66276.0,66275.0,1.14047108]
[1718604435074,0.64407287,66276.0,66275.0,0.99123449]
[1718604435299,0.63495847,66276.0,66275.0,0.38604108]
[1718604435529,0.64559287,66276.0,66275.0,0.38604108]
[1718604436006,0.64559287,66276.0,66275.0,0.3350988]
[1718604436225,0.64559287,66276.0,66275.0,0.52290597]
[1718604437746,0.62659287,66276.0,66275.0,0.52290597]
[1718604438188,0.63159287,66276.0,66275.0,0.52290597]
[1718604438448,0.63159287,66276.0,66275.0,0.14771891]
[1718604438651,0.61859287,66276.0,66275.0,0.52258561]
[1718604438866,0.62559287,66276.0,66275.0,0.52258561]
[1718604439084,0.62559287,66276.0,66275.0,0.5225821]
[1718604439291,0.62559287,66276.0,66275.0,0.33476323]
[1718604439493,0.62559287,66276.0,66275.0,0.3347639]
[1718604440264,0.62559287,66276.0,66275.0,0.58767113]
[1718604440465,0.61495847,66276.0,66275.0,0.58767113]
[1718604440780,0.62560416,66276.0,66275.0,0.58767113]
[1718604440980,0.62560416,66276.0,66275.0,0.43678513]
[1718604441194,0.62560416,66276.0,66275.0,0.63276834]
[1718604441400,0.62560416,66276.0,66275.0,0.93454034]
[1718604441601,0.61495847,66276.0,66275.0,0.93454034]
[1718604441801,0.61495847,66276.0,66275.0,0.93453853]
[1718604441919,0.6256027,66276.0,66275.0,0.93453853]
[1718604442120,0.6256027,66276.0,66275.0,0.93450529]
[1718604442343,0.6256027,66276.0,66275.0,0.63273329]
[1718604442944,0.61495847,66276.0,66275.0,0.37960115]
[1718604443155,0.61495847,66276.0,66275.0,0.29082002]
[1718604443353,0.6256027,66276.0,66275.0,0.2727044]
[1718604443766,0.9273707,66276.0,66275.0,0.2727044]
[1718604443964,1.39979779,66276.0,66275.0,0.1346044]
[1718604444163,1.09802979,66276.0,66275.0,0.1346044]
[1718604444888,0.6256027,66276.0,66275.0,0.1346044]
[1718604445069,1.09802979,66276.0,66275.0,0.1346044]
[1718604446343,1.39979779,66276.0,66275.0,0.13461486]
[1718604446692,1.09802979,66276.0,66275.0,0.13461486]
[1718604450051,1.39979779,66276.0,66275.0,0.13461486]
[1718604450472,1.0782547,66276.0,66275.0,0.13461486]
[1718604450914,1.3800227,66276.0,66275.0,0.13461486]
[1718604452531,1.0782547,66276.0,66275.0,0.13461486]
[1718604454467,1.0782547,66276.0,66275.0,0.13462086]
[1718604454632,1.3800227,66276.0,66275.0,0.13462086]
[1718604454843,1.0782547,66276.0,66275.0,0.13462086]
[1718604455212,1.3800227,66276.0,66275.0,0.13462086]
[1718604456014,1.0782547,66276.0,66275.0,0.13462086]
[1718604456219,1.39979779,66276.0,66275.0,0.13462086]
[1718604457258,1.3800227,66276.0,66275.0,0.13462086]
[1718604457462,1.39979779,66276.0,66275.0,0.13462086]
[1718604458990,1.3800227,66276.0,66275.0,0.13462086]
[1718604459192,1.3800227,66276.0,66275.0,0.13462262]
[1718604459401,1.39979779,66276.0,66275.0,0.13462262]
[1718604460402,0.150895,66271.0,66270.0,0.05940338]
[1718604460835,0.46330196,66271.0,66270.0,0.1211517]
[1718604461257,0.16151096,66271.0,66270.0,0.07596745]
[1718604461468,0.16151096,66271.0,66270.0,0.12117388]
[1718604461845,0.16151096,66271.0,66270.0,0.11717388]
[1718604462269,0.16151096,66271.0,66270.0,0.07196745]
[1718604463255,0.16151096,66271.0,66270.0,0.15186405]
[1718604464278,0.16151096,66271.0,66270.0,0.15086405]
[1718604464487,0.16151096,66271.0,66270.0,0.15186405]
[1718604464892,0.16151096,66271.0,66270.0,0.15086405]
[1718604465086,0.16151096,66271.0,66270.0,0.15108896]
[1718604465300,0.46330196,66271.0,66270.0,0.15186405]
[1718604466529,0.76509296,66271.0,66270.0,0.15186405]
[1718604466736,0.76509296,66271.0,66270.0,0.06367992]
[1718604466737,0.46330196,66271.0,66270.0,0.06367992]
[1718604466984,0.46330196,66271.0,66270.0,0.10890252]
[1718604467952,0.01061596,66271.0,66270.0,0.10890252]
[1718604468228,0.01061596,66271.0,66270.0,0.1157041]
[1718604468579,0.150892,66273.0,66270.0,0.1157041]
[1718604468781,0.0106203,66271.0,66270.0,0.05395918]
[1718604468999,0.150892,66273.0,66270.0,0.11558385]
[1718604469200,0.0106203,66271.0,66270.0,0.05418409]
[1718604469405,0.150893,66272.0,66271.0,0.00022491]
[1718604470193,0.150893,66272.0,66271.0,0.04544769]
[1718604470445,0.150893,66272.0,66271.0,0.23227637]
[1718604471145,0.15071144,66272.0,66271.0,0.23227637]
[1718604471330,0.150891,66273.0,66271.0,0.23227637]
[1718604471529,0.150891,66273.0,66272.0,0.18682868]
[1718604471895,0.150891,66273.0,66272.0,0.18683158]
[1718604472542,0.60295847,66276.0,66274.0,0.00022491]
[1718604472738,0.60295847,66276.0,66272.0,0.28518246]
[1718604472739,0.75384347,66276.0,66275.0,0.12522812]
[1718604472942,1.05561147,66276.0,66275.0,0.12522812]
[1718604473761,0.75384347,66276.0,66275.0,0.12522812]
[1718604473979,0.75884347,66276.0,66275.0,0.15470978]
[1718604474184,0.60795847,66276.0,66275.0,0.12545303]
[1718604474596,0.61395847,66276.0,66275.0,0.12545303]
[1718604475227,0.61395847,66276.0,66275.0,0.48496505]
[1718604475427,0.60895847,66276.0,66275.0,0.45240764]
[1718604475654,0.60895847,66276.0,66275.0,0.55008053]
[1718604475831,0.60895847,66276.0,66275.0,0.48225194]
[1718604475832,0.6265736,66276.0,66275.0,0.48225194]
[1718604476006,0.61595847,66276.0,66275.0,0.48225194]
[1718604476248,0.6265736,66276.0,66275.0,0.48225194]
[1718604476459,0.6265736,66276.0,66275.0,0.5500898]
[1718604477321,0.6265736,66276.0,66275.0,0.254592]
[1718604477542,0.7774576,66276.0,66275.0,0.2319816]
[1718604477740,0.7774576,66276.0,66275.0,0.12522812]
[1718604478388,0.6265736,66276.0,66275.0,0.12522812]
[1718604479003,0.6265736,66276.0,66275.0,0.26489073]
[1718604479395,0.6265736,66276.0,66275.0,0.21966327]
[1718604480184,0.6265736,66276.0,66275.0,0.21988818]
[1718604480550,0.61595847,66276.0,66275.0,1.29910885]
[1718604480717,0.61595847,66276.0,66275.0,1.16791818]
[1718604480718,0.6265933,66276.0,66275.0,1.16791818]
[1718604481100,0.61595847,66276.0,66275.0,1.16791818]
[1718604481317,0.6205933,66276.0,66275.0,1.56969018]
[1718604481509,0.00085,66292.0,66275.0,1.56969018]
[1718604481510,0.00085,66292.0,66288.0,0.45279391]
[1718604481713,0.00085,66292.0,66288.0,0.90944191]
[1718604481912,0.00085,66292.0,66291.0,0.45277491]
[1718604482117,0.00085,66292.0,66291.0,0.99080303]
[1718604482342,0.00085,66292.0,66291.0,1.12725193]
[1718604482515,0.00085,66292.0,66291.0,1.25834541]
[1718604482719,0.00085,66292.0,66291.0,1.15868082]
[1718604482916,0.00085,66292.0,66291.0,1.69146049]
[1718604483117,0.00085,66292.0,66291.0,1.38968037]
[1718604483340,0.00085,66292.0,66291.0,1.54476816]
[1718604483716,0.00185,66292.0,66291.0,1.46908655]
[1718604483924,0.00085,66292.0,66291.0,1.38418109]
[1718604484100,0.00085,66301.0,66300.0,0.29555391]
[1718604484319,0.00085,66301.0,66300.0,0.75534415]
[1718604484521,0.00085,66301.0,66300.0,1.16351504]
[1718604484737,0.04938147,66307.0,66300.0,1.67213715]
[1718604484958,0.04938147,66307.0,66306.0,0.71867091]
[1718604485172,0.150779,66322.0,66307.0,0.00022491]
[1718604485173,0.150782,66321.0,66307.0,0.00022491]
[1718604485321,0.01972998,66319.0,66310.0,0.00022491]
[1718604485534,0.01972998,66319.0,66308.0,0.20061597]
[1718604485535,0.01972998,66318.0,66311.0,0.12516458]
[1718604485759,0.01972998,66318.0,66313.0,0.00022491]
[1718604486074,0.01972998,66318.0,66312.0,0.12516458]
[1718604486075,0.01972998,66318.0,66312.0,0.00022491]
[1718604486304,0.01972998,66318.0,66309.0,0.00022491]
[1718604486506,0.01972998,66318.0,66312.0,0.00022491]
[1718604486721,0.0494565,66322.0,66315.0,0.00022491]
[1718604486927,0.001,66318.0,66317.0,0.00022491]
[1718604487125,0.001,66318.0,66311.0,0.16002791]
[1718604487328,0.150777,66323.0,66315.0,0.00022491]
[1718604487329,0.150782,66321.0,66315.0,0.00022491]
[1718604487545,0.01977725,66317.0,66315.0,0.00022491]
[1718604487753,0.001,66318.0,66315.0,0.15101891]
[1718604487925,0.002,66318.0,66315.0,0.15101891]
[1718604488124,0.002,66318.0,66316.0,0.00022491]
[1718604488333,0.002,66318.0,66317.0,0.01839856]
[1718604488540,0.003,66318.0,66317.0,0.01839856]
[1718604488718,0.002,66318.0,66317.0,0.01839856]
[1718604488939,0.14330244,66325.0,66317.0,0.01839856]
[1718604489257,0.01979839,66318.0,66317.0,0.01839856]
[1718604489424,0.250773,66325.0,66317.0,0.01839856]
[1718604489625,0.250773,66325.0,66316.0,0.00022491]
[1718604489821,0.01981789,66324.0,66316.0,0.00022491]
[1718604490090,0.01981789,66324.0,66320.0,0.14172491]
[1718604490307,0.250763,66329.0,66320.0,0.14172491]
[1718604490603,0.01981768,66323.0,66320.0,0.14172491]
[1718604490822,0.25208779,66329.0,66321.0,0.01417249]
[1718604491033,0.01981443,66322.0,66321.0,0.01417249]
[1718604491305,0.01981118,66322.0,66321.0,0.01417249]
[1718604491763,0.15077,66326.0,66321.0,0.01417249]
[1718604491891,0.01981118,66322.0,66321.0,0.01417249]
[1718604492091,0.001,66325.0,66321.0,0.01417249]
[1718604492302,0.001,66325.0,66322.0,0.01558974]
[1718604492497,0.1,66329.0,66322.0,0.01558974]
[1718604492708,0.182,66333.0,66323.0,0.150775]
[1718604492906,0.15208779,66332.0,66323.0,0.00022491]
[1718604493176,0.1,66331.0,66324.0,0.05986165]
[1718604493536,0.150764,66329.0,66324.0,0.05986165]
[1718604493737,0.150764,66329.0,66322.0,0.01558974]
[1718604493939,0.150764,66329.0,66323.0,0.00022491]
[1718604495206,0.152764,66329.0,66323.0,0.00022491]
[1718604495388,0.150764,66329.0,66325.0,0.00022491]
[1718604495588,0.150764,66329.0,66323.0,0.00022491]
[1718604495799,0.152764,66329.0,66324.0,0.01573147]
[1718604496170,0.157764,66329.0,66324.0,0.01573147]
[1718604496676,0.152764,66329.0,66324.0,0.01573147]
[1718604497077,0.154764,66329.0,66324.0,0.01573147]
[1718604497533,0.150799,66314.0,66311.0,0.14392491]
[1718604497756,0.1508,66313.0,66312.0,0.12512758]
[1718604497962,0.01972998,66317.0,66308.0,0.064]
[1718604498134,0.452427,66309.0,66308.0,0.064]
[1718604498345,0.0832,66315.0,66308.0,0.064]
[1718604498715,0.001,66314.0,66311.0,0.004]
[1718604499087,0.001,66314.0,66311.0,0.009]
[1718604499499,0.150791,66317.0,66308.0,0.064]
[1718604499631,0.01972998,66318.0,66309.0,0.03040869]
[1718604499834,0.150793,66316.0,66309.0,0.000935]
[1718604500256,0.0832,66319.0,66311.0,0.00022491]
[1718604500459,0.0832,66319.0,66310.0,0.150805]
[1718604500460,0.150784,66320.0,66312.0,0.00022491]
[1718604500656,0.150784,66320.0,66309.0,0.151741]
[1718604500657,0.01972998,66318.0,66309.0,0.000935]
[1718604501055,0.150798,66314.0,66309.0,0.000935]
[1718604501259,0.150798,66314.0,66310.0,0.0144635]
[1718604501892,0.150798,66314.0,66311.0,0.001]
[1718604502289,0.1508,66313.0,66310.0,0.0144635]
[1718604502768,0.1508,66313.0,66310.0,0.0164635]
[1718604503243,0.1508,66313.0,66310.0,0.0144635]
[1718604503471,0.1508,66313.0,66310.0,0.0154635]
[1718604503680,0.1508,66313.0,66311.0,0.01600985]
[1718604504201,0.150804,66311.0,66310.0,0.001]
[1718604504442,0.47214298,66311.0,66310.0,0.12614774]
[1718604504635,0.77375198,66311.0,66310.0,0.12614774]
[1718604504839,0.47214298,66311.0,66310.0,0.12714774]
[1718604505090,0.77375198,66311.0,66310.0,0.12514774]
[1718604505426,0.77375198,66311.0,66310.0,0.12614774]
[1718604505631,0.77375198,66311.0,66310.0,0.12514774]
[1718604505839,0.754022,66311.0,66310.0,0.12514774]
[1718604506115,0.77375198,66311.0,66310.0,0.12514774]
[1718604506523,0.77475198,66311.0,66310.0,0.12514774]
[1718604506755,0.754032,66310.0,66309.0,0.000935]
[1718604506949,0.77376198,66310.0,66309.0,0.000935]
[1718604507155,0.77376198,66310.0,66309.0,0.12609377]
[1718604507358,0.77350475,66310.0,66309.0,0.12609377]
[1718604507558,0.17027875,66310.0,66309.0,0.14475315]
[1718604507780,0.01947275,66310.0,66309.0,0.14475315]
[1718604508772,0.0194374,66310.0,66309.0,0.14475315]
[1718604508981,0.150804,66311.0,66309.0,0.14475315]
[1718604509192,0.150804,66311.0,66310.0,0.12515877]
[1718604510335,0.452401,66313.0,66310.0,0.14590658]
[1718604510547,0.150803,66312.0,66311.0,0.12515877]
[1718604511620,0.150803,66312.0,66311.0,0.12538368]
[1718604511788,0.151803,66312.0,66311.0,0.20528368]
[1718604511992,0.151803,66312.0,66311.0,0.22775542]
[1718604512517,0.153803,66312.0,66311.0,0.22775542]
[1718604513061,0.151803,66312.0,66311.0,0.22775542]
[1718604513305,0.151803,66312.0,66311.0,0.14785542]
[1718604514197,0.150803,66312.0,66311.0,0.14785073]
[1718604514708,0.150803,66312.0,66311.0,0.14807564]
[1718604514911,0.150795,66315.0,66312.0,0.00022491]
[1718604515134,0.150795,66315.0,66313.0,0.15030993]
[1718604515360,0.21668779,66320.0,66315.0,0.00022491]
[1718604515560,0.21668779,66320.0,66316.0,0.12515408]
[1718604515561,0.150786,66319.0,66316.0,0.12515408]
[1718604515794,0.15208779,66320.0,66317.0,0.12515408]
[1718604515947,0.15208779,66320.0,66315.0,0.00022491]
[1718604516123,0.15079,66317.0,66316.0,0.12514309]
[1718604516812,0.452371,66317.0,66316.0,0.12514309]
[1718604517582,0.452359,66319.0,66316.0,0.12514309]
[1718604517776,0.150787,66319.0,66317.0,0.12514309]
[1718604517993,0.150787,66319.0,66318.0,0.12514309]
[1718604518336,0.157787,66319.0,66318.0,0.12514309]
[1718604518749,0.150787,66319.0,66318.0,0.12514309]
[1718604519159,0.77366098,66319.0,66318.0,0.12514309]
[1718604519577,0.01972998,66319.0,66318.0,0.12514309]
[1718604519798,0.47208798,66319.0,66318.0,0.12514309]
[1718604520497,0.47908798,66319.0,66318.0,0.12614309]
[1718604520695,0.459358,66319.0,66318.0,0.12614309]
[1718604520911,0.007,66319.0,66318.0,0.12614309]
[1718604522036,0.014,66319.0,66318.0,0.12614309]
[1718604522479,0.0325298,66319.0,66318.0,0.14935366]
[1718604522685,0.1833158,66319.0,66318.0,0.12614309]
[1718604522902,0.50461778,66319.0,66318.0,0.12614309]
[1718604524301,0.1833158,66319.0,66318.0,0.12614309]
[1718604524497,0.0325298,66319.0,66318.0,0.12614309]
[1718604524666,0.0325298,66319.0,66318.0,0.14937615]
[1718604525061,0.0325298,66319.0,66318.0,0.12614309]
[1718604525275,0.50461778,66319.0,66318.0,0.12614309]
[1718604525703,0.80618978,66319.0,66318.0,0.12614309]
[1718604526489,0.50461778,66319.0,66318.0,0.12614309]
[1718604528469,0.80618978,66319.0,66318.0,0.12614309]
[1718604530305,1.10776178,66319.0,66318.0,0.12614309]
[1718604530535,0.80618978,66319.0,66318.0,0.12615137]
[1718604530782,1.45044957,66319.0,66318.0,0.12615137]
[1718604533503,1.14887757,66319.0,66318.0,0.12615137]
[1718604534067,1.45044957,66319.0,66318.0,0.12615137]
[1718604539274,1.45044957,66319.0,66318.0,0.001]
[1718604539509,1.45044957,66319.0,66318.0,0.12615637]
[1718604541500,1.45044957,66319.0,66318.0,0.001]
[1718604541918,1.45044957,66319.0,66318.0,0.12615619]
[1718604542364,1.09837757,66319.0,66318.0,0.13877181]
[1718604542506,1.14887757,66319.0,66318.0,0.13877181]
[1718604542913,1.14887757,66319.0,66318.0,0.01361562]
[1718604543119,1.14887757,66319.0,66318.0,0.12615299]
[1718604543375,1.45044957,66319.0,66318.0,0.12615299]
[1718604543976,1.14887757,66319.0,66318.0,0.12615299]
[1718604544405,1.45044957,66319.0,66318.0,0.12615299]
[1718604544527,1.03547757,66319.0,66318.0,0.001]
[1718604544731,1.25984957,66319.0,66318.0,0.001]
[1718604544940,0.95827757,66319.0,66318.0,0.12615124]
[1718604545415,0.80618978,66319.0,66318.0,0.13876636]
[1718604545620,0.50461778,66319.0,66318.0,0.13876636]
[1718604545829,0.50461778,66319.0,66318.0,0.20046636]
[1718604546029,0.50461778,66319.0,66318.0,0.13876636]
[1718604547494,0.80618978,66319.0,66318.0,0.13876636]
[1718604549890,0.50461778,66319.0,66318.0,0.13876636]
[1718604550102,0.20304578,66319.0,66318.0,0.13876636]
[1718604550310,0.1833158,66319.0,66318.0,0.13876636]
[1718604550525,0.0325298,66319.0,66318.0,0.13876636]
[1718604550728,0.0325298,66319.0,66318.0,0.31208032]
[1718604550940,0.0325298,66319.0,66318.0,0.4111881]
[1718604551156,0.014,66319.0,66318.0,0.4111881]
[1718604551330,0.014,66319.0,66318.0,0.34336476]
[1718604551574,0.007,66319.0,66318.0,0.15541512]
[1718604551783,0.02552858,66319.0,66318.0,0.15541512]
[1718604551983,0.008,66319.0,66318.0,0.16141512]
[1718604552416,0.001,66319.0,66318.0,0.16141512]
[1718604552620,0.01211715,66319.0,66318.0,0.16141512]
[1718604552834,0.01311715,66319.0,66318.0,0.31442803]
[1718604553069,0.002,66319.0,66318.0,0.80290521]
[1718604553279,0.001,66319.0,66318.0,0.88731699]
[1718604553484,0.00085,66325.0,66319.0,0.00022491]
[1718604553695,0.00085,66325.0,66321.0,0.04519639]
[1718604553902,0.01112495,66324.0,66322.0,0.12513481]
[1718604554107,0.01112495,66324.0,66323.0,0.12513481]
[1718604554475,0.00085,66325.0,66323.0,0.12513481]
[1718604554677,0.00185,66325.0,66324.0,0.12513481]
[1718604555081,0.00085,66325.0,66324.0,0.12513481]
[1718604555287,0.97702977,66325.0,66324.0,0.12513481]
[1718604555492,0.97702977,66325.0,66315.0,0.11301473]
[1718604555493,0.01972998,66315.0,66313.0,0.04519639]
[1718604555695,0.150799,66313.0,66312.0,0.04519639]
[1718604555909,0.01972998,66313.0,66312.0,0.12515206]
[1718604556691,0.17052898,66313.0,66312.0,0.12515206]
[1718604556872,0.17052898,66313.0,66312.0,0.12715206]
[1718604556873,0.17152898,66313.0,66312.0,0.12715206]
[1718604557929,0.152799,66313.0,66312.0,0.13415206]
[1718604558129,0.152799,66313.0,66312.0,0.32652104]
[1718604558130,0.002,66313.0,66312.0,0.32652104]
[1718604559157,0.002,66313.0,66312.0,0.44481563]
[1718604560566,0.01910562,66313.0,66312.0,0.44481563]
[1718604560759,0.1896346,66313.0,66312.0,0.13414829]
[1718604561013,0.6337336,66313.0,66312.0,0.13414829]
[1718604561159,1.2369316,66313.0,66312.0,0.13414829]
[1718604561558,1.2369316,66313.0,66312.0,0.009]
[1718604561802,1.2369316,66313.0,66312.0,0.002]
[1718604561803,1.2359316,66313.0,66312.0,0.002]
[1718604562245,1.2369316,66313.0,66312.0,0.009]
[1718604562648,1.2359316,66313.0,66312.0,0.007]
[1718604562842,1.2359316,66313.0,66312.0,0.009]
[1718604563078,1.2369316,66313.0,66312.0,0.009]
[1718604563449,1.2389316,66313.0,66312.0,0.009]
[1718604563861,1.2379316,66313.0,66312.0,0.002]
[1718604564015,1.2399316,66313.0,66312.0,0.002]
[1718604564715,1.39201939,66313.0,66312.0,0.002935]
[1718604564940,1.80361839,66313.0,66312.0,0.002935]
[1718604565154,1.95570618,66313.0,66312.0,0.002935]
[1718604565752,1.80361839,66313.0,66312.0,0.002935]
[1718604566366,1.80061839,66313.0,66312.0,0.000935]
[1718604567037,2.23211579,66313.0,66312.0,0.000935]
[1718604567293,2.24311579,66313.0,66312.0,0.000935]
[1718604567463,1.99360458,66313.0,66312.0,0.000935]
[1718604567641,2.00060458,66313.0,66312.0,0.000935]
[1718604567841,2.10060458,66313.0,66312.0,0.000935]
[1718604568049,1.99360458,66313.0,66312.0,0.000935]
[1718604568343,2.09360458,66313.0,66312.0,0.000935]
[1718604568525,2.10460458,66313.0,66312.0,0.000935]
[1718604569128,2.62668358,66313.0,66312.0,0.000935]
[1718604569344,2.61568358,66313.0,66312.0,0.000935]
[1718604569546,2.96728258,66313.0,66312.0,0.000935]
[1718604569961,3.02053293,66313.0,66312.0,0.000935]
[1718604570120,2.07128098,66310.0,66309.0,0.000935]
[1718604570323,2.55785496,66310.0,66309.0,0.000935]
[1718604570577,2.57475828,66310.0,66309.0,0.000935]
[1718604570749,2.62475828,66310.0,66309.0,0.000935]
[1718604571393,2.70055828,66310.0,66309.0,0.000935]
[1718604572024,2.71455828,66310.0,66309.0,0.000935]
[1718604572630,2.72855828,66310.0,66309.0,0.000935]
[1718604573035,2.42694528,66310.0,66309.0,0.000935]
[1718604573843,2.72855828,66310.0,66309.0,0.000935]
[1718604574067,0.01972998,66282.0,66274.0,0.04511211]
[1718604574266,0.17059998,66282.0,66281.0,0.45626336]
[1718604574474,0.15088,66278.0,66274.0,0.02041644]
[1718604574651,0.15088,66278.0,66271.0,0.1396]
[1718604574870,0.01687028,66277.0,66273.0,0.1396]
[1718604575081,0.01687028,66277.0,66275.0,0.1396]
[1718604575297,0.01687028,66277.0,66276.0,0.1396]
[1718604575697,0.001,66278.0,66277.0,0.0623]
[1718604575994,0.150877,66279.0,66277.0,0.0623]
[1718604576198,0.452638,66278.0,66277.0,0.0623]
[1718604576460,0.754397,66278.0,66277.0,0.0623]
[1718604576629,0.452638,66278.0,66277.0,0.07667]
[1718604577239,0.001,66278.0,66277.0,0.07667]
[1718604577379,0.150872,66282.0,66279.0,0.1466]
[1718604577613,0.150872,66282.0,66279.0,0.0787]
[1718604577825,0.150872,66282.0,66278.0,0.00022491]
[1718604577826,0.150872,66282.0,66281.0,0.0787]
[1718604578178,0.4526,66284.0,66281.0,0.0787]
[1718604578377,0.150868,66283.0,66282.0,0.01417]
[1718604579491,0.17059798,66283.0,66282.0,0.01417]
[1718604580209,0.47234098,66282.0,66281.0,0.0787]
[1718604580836,1.07582298,66282.0,66281.0,0.0787]
[1718604581046,0.77408198,66282.0,66281.0,0.0787]
[1718604582184,0.77708198,66282.0,66281.0,0.0787]
[1718604582408,0.793905,66282.0,66281.0,0.0787]
[1718604582669,0.77417502,66282.0,66281.0,0.0787]
[1718604583534,0.796905,66282.0,66281.0,0.0787]
[1718604584633,0.02282302,66282.0,66281.0,0.09267]
[1718604585099,0.17369302,66282.0,66281.0,0.09267]